Workbook

Sheet Sheet1
G3: AC0003
C5: PHONE | G5: Model | M5: DATE
C7: IPHONE | G7: X | M7: 2019-09-12
G9: PAX | K9: PRICE PER PERSON | M9: PRICE PER CABIN
D11: Model | K11: 1390 | R11: =SUM(M12:M18,) -> 10608.48
D12: X | G12: 2 | K12: =IF(G12=1,"",K11*G12) -> 2780 | M12: =K12 -> 2780
D13: ActiveX | F13: 0.2 | G13: 2 | K13: =K11*G13*(1-F13) -> 2224 | M13: =K13 -> 2224
D15: Whatsapp | F15: 0.3 | G15: 2 | K15: =K13*G15*(1-F15) -> 3113.6 | M15: =K15 -> 3113.6
D17: Viber | F17: 0.6 | G17: 2 | K17: =K15*G17*(1-F17) -> 2490.88 | M17: =K17 -> 2490.88
D20: Model | K20: 1390 | R20: =SUM(M21:M28,) -> 26966
D21: Seven | G21: 2 | K21: =IF(G21=1,"",K20*G21) -> 2780 | M21: =K21 -> 2780
D22: ActiveX | G22: 3 | K22: =K20*G22*(1-F22) -> 4170 | M22: =K22 -> 4170
D24: Whatsapp | F24: 0.2 | G24: 2 | K24: =K22*G24*(1-F24) -> 6672 | M24: =K24 -> 6672
D26: Viber | G26: 2 | K26: =K24*G26*(1-F26) -> 13344 | M26: =K26 -> 13344
R28: =SUM(M29:M36,) -> 14066.8
D29: Model | K29: 1390
D30: Nine | G30: 2 | K30: =IF(G30=1,"",K29*G30) -> 2780 | M30: =K30 -> 2780
D31: ActiveX | F31: 0.3 | G31: 2 | K31: =K29*G31*(1-F31) -> 1946 | M31: =K31 -> 1946
D33: Whatsapp | F33: 0.2 | G33: 2 | K33: =K31*G33*(1-F33) -> 3113.6 | M33: =K33 -> 3113.6
D35: Viber | G35: 2 | K35: =K33*G35*(1-F35) -> 6227.2 | M35: =K35 -> 6227.2
C38: PAYMENT DETAILS:
L39: SUBTOTAL | Q39: =SUM(Q10:R36) -> 51641.28
L40: Discount(s) | P40: 0.2 | Q40: =(Q39*P40) -> 10328.256
L41: Extra Discount | P41: 0.05 | Q41: =(Q39-Q40)*P41 -> 2065.6512
L42: TOTAL AMOUNT | Q42: =Q39-Q40-Q41 -> 39247.3728
L43: Commission | P43: 0.25 | Q43: =(Q42*P43) -> 9811.8432
L44: Taxes | P44: 35 | Q44: =P44*G11 -> 0
L46: NET AMOUNT | Q46: =Q42-Q43+Q44 -> 29435.5296
